[Event "MČR v rapid šachu družstev 2019"]
[Site "Teplice, Czech Republic"]
[Date "2019.09.15"]
[Round "7.8"]
[White "Kuba, Jindrich"]
[Black "Krejci, Jan"]
[Result "1/2-1/2"]
[TimeControl "15 min. + 5s"]
[WhiteElo "2229"]
[BlackElo "2496"]

1. e4 {[%clk 00:15:09]} e5 {[%clk 00:15:09]} {[%emt 00:00:01]} 2. Nf3 {[%clk
00:15:12]} {[%emt 00:00:01]} Nf6 {[%clk 00:15:11]} {[%emt 00:00:03]} 3. d3
{[%clk 00:15:12]} {[%emt 00:00:05]} Nc6 {[%clk 00:15:09]} {[%emt 00:00:06]} 4.
Bg5 {[%clk 00:14:48]} {[%emt 00:00:30]} h6 {[%clk 00:15:00]} {[%emt 00:00:15]}
5. Be3 {[%clk 00:14:32]} {[%emt 00:00:21]} d5 {[%clk 00:14:59]} {[%emt
00:00:06]} 6. exd5 {[%clk 00:14:28]} {[%emt 00:00:09]} Nxd5 {[%clk 00:15:02]}
{[%emt 00:00:03]} 7. Bd2 {[%clk 00:14:30]} {[%emt 00:00:03]} Bc5 {[%clk
00:14:44]} {[%emt 00:00:22]} 8. Nc3 {[%clk 00:14:16]} {[%emt 00:00:19]} O-O
{[%clk 00:14:08]} {[%emt 00:00:41]} 9. Nxd5 {[%clk 00:14:07]} {[%emt 00:00:15]}
Qxd5 {[%clk 00:14:06]} {[%emt 00:00:06]} 10. Be2 {[%clk 00:14:00]} {[%emt
00:00:12]} Nd4 {[%clk 00:13:45]} {[%emt 00:00:26]} 11. Nxd4 {[%clk 00:13:22]}
{[%emt 00:00:43]} Qxd4 {[%clk 00:12:30]} {[%emt 00:01:21]} 12. O-O {[%clk
00:12:20]} {[%emt 00:01:06]} Qxb2 {[%clk 00:12:24]} {[%emt 00:00:11]} 13. a4
{[%clk 00:12:02]} {[%emt 00:00:23]} b6 {[%clk 00:11:04]} {[%emt 00:01:25]} 14.
Bf3 {[%clk 00:12:05]} {[%emt 00:00:02]} Rb8 {[%clk 00:11:08]} {[%emt 00:00:01]}
15. Bd5 {[%clk 00:12:02]} {[%emt 00:00:08]} Qd4 {[%clk 00:10:47]} {[%emt
00:00:25]} 16. Bb3 {[%clk 00:11:48]} {[%emt 00:00:19]} a5 {[%clk 00:10:40]}
{[%emt 00:00:12]} 17. Qh5 {[%clk 00:11:15]} {[%emt 00:00:38]} Bd6 {[%clk
00:10:08]} {[%emt 00:00:36]} 18. h3 {[%clk 00:10:24]} {[%emt 00:00:56]} e4
{[%clk 00:09:12]} {[%emt 00:01:01]} 19. Be3 {[%clk 00:09:12]} {[%emt 00:01:17]}
Qe5 {[%clk 00:09:12]} {[%emt 00:00:05]} 20. Qxe5 {[%clk 00:09:16]} {[%emt
00:00:02]} Bxe5 {[%clk 00:09:15]} {[%emt 00:00:01]} 21. d4 {[%clk 00:09:20]}
Bd6 {[%clk 00:09:12]} {[%emt 00:00:09]} 22. Bd5 {[%clk 00:09:11]} {[%emt
00:00:14]} Bb7 {[%clk 00:08:57]} {[%emt 00:00:20]} 23. Bb3 {[%clk 00:08:56]}
{[%emt 00:00:20]} Rfe8 {[%clk 00:08:36]} {[%emt 00:00:26]} 24. c4 {[%clk
00:08:57]} {[%emt 00:00:05]} c5 {[%clk 00:08:21]} {[%emt 00:00:20]} 25. d5
{[%clk 00:08:56]} {[%emt 00:00:07]} Rbd8 {[%clk 00:08:11]} {[%emt 00:00:14]} 26.
Rab1 {[%clk 00:08:58]} {[%emt 00:00:03]} Bc7 {[%clk 00:08:10]} {[%emt
00:00:07]} 27. g4 {[%clk 00:08:24]} {[%emt 00:00:39]} Ba6 {[%clk 00:08:11]}
{[%emt 00:00:04]} 28. Rfe1 {[%clk 00:08:09]} {[%emt 00:00:21]} Kh7 {[%clk
00:08:02]} {[%emt 00:00:12]} 29. Kf1 {[%clk 00:07:53]} {[%emt 00:00:22]} g6
{[%clk 00:08:06]} {[%emt 00:00:02]} 30. Ke2 {[%clk 00:06:49]} {[%emt 00:01:09]}
Rxd5 {[%clk 00:07:57]} {[%emt 00:00:14]} 31. Red1 {[%clk 00:06:31]} {[%emt
00:00:22]} Red8 {[%clk 00:07:53]} {[%emt 00:00:09]} 32. Rxd5 {[%clk 00:06:31]}
{[%emt 00:00:05]} Rxd5 {[%clk 00:07:57]} {[%emt 00:00:01]} 33. Ke1 {[%clk
00:06:25]} {[%emt 00:00:12]} Rd8 {[%clk 00:07:16]} {[%emt 00:00:45]} 34. Rc1
{[%clk 00:06:08]} {[%emt 00:00:22]} f5 {[%clk 00:07:16]} {[%emt 00:00:06]} 35.
gxf5 {[%clk 00:06:12]} {[%emt 00:00:02]} gxf5 {[%clk 00:07:19]} {[%emt
00:00:01]} 36. Bc2 {[%clk 00:06:12]} {[%emt 00:00:05]} Kg6 {[%clk 00:06:55]}
{[%emt 00:00:29]} 37. f3 {[%clk 00:05:31]} {[%emt 00:00:46]} exf3 {[%clk
00:06:22]} {[%emt 00:00:38]} 38. Kf2 {[%clk 00:05:35]} {[%emt 00:00:01]} Kf6
{[%clk 00:04:38]} {[%emt 00:01:49]} 39. Kxf3 {[%clk 00:04:43]} {[%emt
00:00:56]} Bxc4 {[%clk 00:04:22]} {[%emt 00:00:21]} 40. Bxf5 {[%clk 00:04:21]}
{[%emt 00:00:27]} Bd5+ {[%clk 00:04:03]} {[%emt 00:00:23]} 41. Be4 {[%clk
00:04:25]} {[%emt 00:00:01]} Bxe4+ {[%clk 00:04:04]} {[%emt 00:00:04]} 42. Kxe4
{[%clk 00:04:29]} {[%emt 00:00:01]} Re8+ {[%clk 00:04:08]} 43. Kf3 {[%clk
00:04:32]} {[%emt 00:00:01]} h5 {[%clk 00:04:05]} {[%emt 00:00:08]} 44. Re1
{[%clk 00:04:18]} {[%emt 00:00:19]} Kf5 {[%clk 00:04:00]} {[%emt 00:00:10]} 45.
Rg1 {[%clk 00:04:20]} {[%emt 00:00:03]} Kf6 {[%clk 00:03:54]} {[%emt 00:00:11]}
46. Re1 {[%clk 00:04:18]} {[%emt 00:00:07]} Rg8 {[%clk 00:03:53]} {[%emt
00:00:07]} 47. Bf2 {[%clk 00:04:19]} {[%emt 00:00:04]} Be5 {[%clk 00:03:47]}
{[%emt 00:00:12]} 48. Rb1 {[%clk 00:04:14]} {[%emt 00:00:10]} Rd8 {[%clk
00:03:30]} {[%emt 00:00:19]} 49. Rxb6+ {[%clk 00:04:16]} {[%emt 00:00:06]} Kf5
{[%clk 00:03:34]} 50. Bxc5 {[%clk 00:03:13]} {[%emt 00:01:08]} Rd3+ {[%clk
00:03:38]} {[%emt 00:00:02]} 51. Ke2 {[%clk 00:03:16]} {[%emt 00:00:02]} Rxh3
{[%clk 00:03:36]} {[%emt 00:00:08]} 52. Rb5 {[%clk 00:03:12]} {[%emt 00:00:08]}
Ke4 {[%clk 00:03:22]} {[%emt 00:00:19]} 53. Bf2 {[%clk 00:03:04]} {[%emt
00:00:13]} Rh2 {[%clk 00:03:12]} {[%emt 00:00:15]} 54. Kf1 {[%clk 00:02:55]}
{[%emt 00:00:14]} Bc3 {[%clk 00:02:53]} {[%emt 00:00:23]} 55. Rb3 {[%clk
00:02:40]} {[%emt 00:00:21]} Bb4 {[%clk 00:02:42]} {[%emt 00:00:14]} 56. Re3+
{[%clk 00:02:32]} {[%emt 00:00:14]} Kf4 {[%clk 00:02:32]} {[%emt 00:00:16]} 57.
Rd3 {[%clk 00:02:36]} {[%emt 00:00:02]} Ke4 {[%clk 00:02:27]} {[%emt 00:00:10]}
58. Re3+ {[%clk 00:02:32]} {[%emt 00:00:08]} Kf4 {[%clk 00:02:27]} {[%emt
00:00:04]} 59. Rd3 {[%clk 00:02:36]} {[%emt 00:00:02]} Rh1+ {[%clk 00:02:31]}
60. Kg2 {[%clk 00:02:39]} {[%emt 00:00:03]} Ra1 {[%clk 00:02:34]} {[%emt
00:00:02]} 61. Rd4+ {[%clk 00:02:22]} {[%emt 00:00:22]} Kf5 {[%clk 00:02:29]}
{[%emt 00:00:09]} 62. Rd5+ {[%clk 00:02:22]} {[%emt 00:00:06]} Kg6 {[%clk
00:02:33]} {[%emt 00:00:02]} 63. Be3 {[%clk 00:02:19]} {[%emt 00:00:07]} h4
{[%clk 00:02:25]} {[%emt 00:00:14]} 64. Rg5+ {[%clk 00:02:21]} {[%emt
00:00:02]} Kf6 {[%clk 00:02:25]} {[%emt 00:00:02]} 65. Rh5 {[%clk 00:02:22]}
{[%emt 00:00:07]} Ra2+ {[%clk 00:02:22]} {[%emt 00:00:08]} 66. Kg1 {[%clk
00:02:10]} {[%emt 00:00:17]} Rxa4 {[%clk 00:02:02]} {[%emt 00:00:25]} 67. Rxh4
{[%clk 00:02:05]} {[%emt 00:00:10]} Ra2 {[%clk 00:02:04]} {[%emt 00:00:03]} 68.
Re4 {[%clk 00:01:51]} {[%emt 00:00:19]} Kf5 {[%clk 00:02:01]} {[%emt 00:00:08]}
69. Re8 {[%clk 00:01:53]} {[%emt 00:00:02]} Re2 {[%clk 00:01:59]} {[%emt
00:00:05]} 70. Kf1 {[%clk 00:01:31]} {[%emt 00:00:29]} Re1+ {[%clk 00:02:01]}
{[%emt 00:00:03]} 71. Kf2 {[%clk 00:01:29]} {[%emt 00:00:06]} a4 {[%clk
00:01:23]} {[%emt 00:00:43]} 72. Ra8 {[%clk 00:01:27]} {[%emt 00:00:07]} a3
{[%clk 00:01:20]} {[%emt 00:00:08]} 73. Ra4 {[%clk 00:01:28]} {[%emt 00:00:04]}
Rb1 {[%clk 00:01:18]} {[%emt 00:00:07]} 74. Kf3 {[%clk 00:01:09]} {[%emt
00:00:24]} Rb3 {[%clk 00:01:15]} {[%emt 00:00:08]} 75. Ke2 {[%clk 00:01:12]}
{[%emt 00:00:04]} Rb2+ {[%clk 00:01:16]} {[%emt 00:00:04]} 76. Kd3 {[%clk
00:01:15]} {[%emt 00:00:01]} Be7 {[%clk 00:01:09]} {[%emt 00:00:09]} 77. Bd4
{[%clk 00:01:16]} {[%emt 00:00:06]} Rh2 {[%clk 00:01:04]} {[%emt 00:00:11]} 78.
Ra7 {[%clk 00:01:02]} {[%emt 00:00:19]} Ke6 {[%clk 00:01:03]} {[%emt 00:00:05]}
79. Kc4 {[%clk 00:00:56]} {[%emt 00:00:11]} Rh3 {[%clk 00:00:57]} {[%emt
00:00:12]} 80. Bc3 {[%clk 00:00:55]} {[%emt 00:00:05]} Bd6 {[%emt 00:00:14]}
1/2-1/2

[Event "MČR v rapid šachu družstev 2019"]
[Site "Teplice, Czech Republic"]
[Date "2019.09.15"]
[Round "7.9"]
[White "Jirovsky, Milos"]
[Black "Vykouk, Jan"]
[Result "1/2-1/2"]
[TimeControl "15 min. + 5s"]
[WhiteElo "2477"]
[BlackElo "2428"]

1. Nf3 {[%clk 00:15:09]} {[%emt 00:21:58]} Nf6 {[%clk 00:15:09]} {[%emt
00:00:02]} 2. c4 {[%clk 00:15:13]} g6 {[%clk 00:15:09]} {[%emt 00:00:05]} 3. g3
{[%clk 00:15:17]} {[%emt 00:00:01]} Bg7 {[%clk 00:15:13]} {[%emt 00:00:01]} 4.
Bg2 {[%clk 00:15:21]} O-O {[%clk 00:15:16]} {[%emt 00:00:02]} 5. O-O {[%clk
00:15:25]} {[%emt 00:00:02]} d6 {[%clk 00:15:19]} {[%emt 00:00:01]} 6. d4
{[%clk 00:15:29]} {[%emt 00:00:01]} c6 {[%clk 00:15:23]} {[%emt 00:00:01]} 7.
Nc3 {[%clk 00:15:32]} {[%emt 00:00:02]} a6 {[%clk 00:15:27]} {[%emt 00:00:02]}
8. a4 {[%clk 00:15:11]} {[%emt 00:00:25]} a5 {[%clk 00:15:31]} {[%emt
00:00:01]} 9. h3 {[%clk 00:15:15]} {[%emt 00:00:01]} Na6 {[%clk 00:15:35]}
{[%emt 00:00:01]} 10. e4 {[%clk 00:15:19]} {[%emt 00:00:02]} Nb4 {[%clk
00:15:38]} {[%emt 00:00:01]} 11. Be3 {[%clk 00:15:14]} {[%emt 00:00:09]} Nd7
{[%clk 00:15:41]} {[%emt 00:00:02]} 12. Nd2 {[%clk 00:14:23]} {[%emt 00:00:56]}
e5 {[%clk 00:15:21]} {[%emt 00:00:26]} 13. d5 {[%clk 00:14:25]} {[%emt
00:00:03]} c5 {[%clk 00:15:24]} {[%emt 00:00:02]} 14. h4 {[%clk 00:13:39]}
{[%emt 00:00:50]} f5 {[%clk 00:15:22]} {[%emt 00:00:07]} 15. Bg5 {[%clk
00:13:42]} {[%emt 00:00:02]} Bf6 {[%clk 00:15:05]} {[%emt 00:00:22]} 16. Bh6
{[%clk 00:13:46]} {[%emt 00:00:01]} Bg7 {[%clk 00:14:36]} {[%emt 00:00:34]} 17.
Bg5 {[%clk 00:13:41]} {[%emt 00:00:10]} Nf6 {[%clk 00:14:37]} {[%emt 00:00:04]}
18. h5 {[%clk 00:11:22]} {[%emt 00:02:25]} h6 {[%clk 00:14:11]} {[%emt
00:00:31]} 19. Bxf6 {[%clk 00:11:22]} {[%emt 00:00:05]} Qxf6 {[%clk 00:14:14]}
{[%emt 00:00:01]} 20. hxg6 {[%clk 00:11:26]} {[%emt 00:00:02]} f4 {[%clk
00:14:18]} {[%emt 00:00:01]} 21. Qh5 {[%clk 00:11:16]} {[%emt 00:00:14]} Nc2
{[%clk 00:14:16]} {[%emt 00:00:07]} 22. Rad1 {[%clk 00:10:51]} {[%emt
00:00:30]} Nd4 {[%clk 00:14:19]} {[%emt 00:00:02]} 23. Nf3 {[%clk 00:10:48]}
{[%emt 00:00:08]} Bd7 {[%clk 00:14:00]} {[%emt 00:00:25]} 24. Rd3 {[%clk
00:09:06]} {[%emt 00:01:47]} Be8 {[%clk 00:13:52]} {[%emt 00:00:13]} 25. Nh4
{[%clk 00:09:05]} {[%emt 00:00:06]} Qg5 {[%clk 00:13:02]} {[%emt 00:00:54]} 26.
g4 {[%clk 00:09:06]} {[%emt 00:00:04]} Bf6 {[%clk 00:12:15]} {[%emt 00:00:52]}
27. Qxg5 {[%clk 00:09:07]} {[%emt 00:00:04]} Bxg5 {[%clk 00:11:11]} {[%emt
00:01:09]} 28. Nf5 {[%clk 00:09:09]} {[%emt 00:00:04]} Bxg6 {[%clk 00:10:00]}
{[%emt 00:01:16]} 29. Rh3 {[%clk 00:07:41]} {[%emt 00:01:32]} Rf6 {[%clk
00:06:22]} {[%emt 00:03:43]} 30. Bf3 {[%clk 00:07:29]} {[%emt 00:00:18]} Nxf3+
{[%clk 00:05:42]} {[%emt 00:00:44]} 31. Rxf3 {[%clk 00:07:32]} {[%emt
00:00:01]} h5 {[%clk 00:05:47]} 32. gxh5 {[%clk 00:06:20]} {[%emt 00:01:18]}
Bxh5 {[%clk 00:05:49]} {[%emt 00:00:02]} 33. Rd3 {[%clk 00:06:23]} {[%emt
00:00:02]} Rg6 {[%clk 00:04:52]} {[%emt 00:01:02]} 34. f3 {[%clk 00:05:33]}
{[%emt 00:00:55]} Bh4+ {[%clk 00:02:43]} {[%emt 00:02:14]} 35. Kh2 {[%clk
00:05:36]} {[%emt 00:00:02]} Bg3+ {[%clk 00:02:41]} {[%emt 00:00:07]} 36. Nxg3
{[%clk 00:05:40]} {[%emt 00:00:01]} Rxg3 {[%clk 00:02:23]} {[%emt 00:00:23]} 37.
Rg1 {[%clk 00:05:44]} {[%emt 00:00:01]} Rxg1 {[%clk 00:02:26]} {[%emt
00:00:02]} 38. Kxg1 {[%clk 00:05:48]} Kf7 {[%clk 00:02:15]} {[%emt 00:00:16]}
39. Kf2 {[%clk 00:05:47]} {[%emt 00:00:06]} Rg8 {[%clk 00:02:09]} {[%emt
00:00:12]} 40. Ne2 {[%clk 00:05:48]} {[%emt 00:00:04]} Ke7 {[%clk 00:01:55]}
{[%emt 00:00:18]} 41. Rb3 {[%clk 00:05:52]} {[%emt 00:00:02]} Rb8 {[%clk
00:01:59]} {[%emt 00:00:02]} 42. Ra3 {[%clk 00:05:22]} {[%emt 00:00:35]} Be8
{[%clk 00:01:58]} {[%emt 00:00:05]} 43. Ra1 {[%clk 00:05:24]} {[%emt 00:00:03]}
Bd7 {[%clk 00:01:59]} {[%emt 00:00:04]} 44. b3 {[%clk 00:05:03]} {[%emt
00:00:25]} Rh8 {[%clk 00:02:02]} {[%emt 00:00:02]} 45. Rg1 {[%clk 00:05:05]}
{[%emt 00:00:04]} 1/2-1/2

[Event "MČR v rapid šachu družstev 2019"]
[Site "Teplice, Czech Republic"]
[Date "2019.09.15"]
[Round "7.10"]
[White "Studnicka, Tomas"]
[Black "Sokolov, Alexander"]
[Result "1/2-1/2"]
[TimeControl "15 min. + 5s"]
[WhiteElo "2379"]
[BlackElo "2384"]

1. d4 {[%clk 00:15:08]} {[%emt 00:00:01]} Nf6 {[%clk 00:15:09]} {[%emt
00:00:01]} 2. c4 {[%clk 00:15:11]} {[%emt 00:00:02]} g6 {[%clk 00:15:13]}
{[%emt 00:00:01]} 3. Nc3 {[%clk 00:15:14]} {[%emt 00:00:01]} Bg7 {[%clk
00:15:16]} {[%emt 00:00:01]} 4. e4 {[%clk 00:15:18]} {[%emt 00:00:02]} d6
{[%clk 00:15:19]} {[%emt 00:00:01]} 5. Be2 {[%clk 00:15:21]} {[%emt 00:00:03]}
O-O {[%clk 00:15:22]} {[%emt 00:00:02]} 6. Bg5 {[%clk 00:15:24]} {[%emt
00:00:02]} c5 {[%clk 00:15:16]} {[%emt 00:00:11]} 7. d5 {[%clk 00:15:28]}
{[%emt 00:00:01]} h6 {[%clk 00:15:17]} {[%emt 00:00:04]} 8. Bf4 {[%clk
00:14:56]} {[%emt 00:00:36]} e6 {[%clk 00:15:21]} {[%emt 00:00:02]} 9. Nf3
{[%clk 00:14:49]} {[%emt 00:00:12]} exd5 {[%clk 00:15:22]} {[%emt 00:00:03]} 10.
exd5 {[%clk 00:14:53]} {[%emt 00:00:01]} Bg4 {[%clk 00:15:20]} {[%emt
00:00:07]} 11. O-O {[%clk 00:14:51]} {[%emt 00:00:07]} a6 {[%clk 00:15:23]}
{[%emt 00:00:02]} 12. h3 {[%clk 00:14:52]} {[%emt 00:00:05]} Bxf3 {[%clk
00:15:25]} {[%emt 00:00:02]} 13. Bxf3 {[%clk 00:14:56]} {[%emt 00:00:02]} Qc7
{[%clk 00:14:41]} {[%emt 00:00:49]} 14. Qd2 {[%clk 00:14:48]} {[%emt 00:00:12]}
Kh7 {[%clk 00:14:45]} {[%emt 00:00:02]} 15. Rfe1 {[%clk 00:14:51]} {[%emt
00:00:02]} Nbd7 {[%clk 00:14:47]} {[%emt 00:00:02]} 16. Re7 {[%clk 00:14:52]}
{[%emt 00:00:04]} Ng8 {[%clk 00:14:42]} {[%emt 00:00:11]} 17. Re2 {[%clk
00:14:32]} {[%emt 00:00:25]} Ne5 {[%clk 00:14:35]} {[%emt 00:00:12]} 18. Bxe5
{[%clk 00:14:28]} {[%emt 00:00:09]} Bxe5 {[%clk 00:14:38]} {[%emt 00:00:02]} 19.
Rc1 {[%clk 00:13:53]} {[%emt 00:00:41]} 1/2-1/2

[Event "MČR v rapid šachu družstev 2019"]
[Site "Teplice, Czech Republic"]
[Date "2019.09.15"]
[Round "7.11"]
[White "Dolezal, Radoslav"]
[Black "Sodoma, Jan"]
[Result "1-0"]
[TimeControl "15 min. + 5s"]
[WhiteElo "2363"]
[BlackElo "2358"]

1. d4 {[%clk 00:15:07]} {[%emt 00:00:02]} Nf6 {[%clk 00:15:08]} {[%emt
00:00:03]} 2. Bg5 {[%clk 00:15:10]} {[%emt 00:00:02]} d5 {[%clk 00:14:48]}
{[%emt 00:00:26]} 3. Bxf6 {[%clk 00:15:13]} {[%emt 00:00:02]} exf6 {[%clk
00:14:49]} {[%emt 00:00:04]} 4. e3 {[%clk 00:15:15]} {[%emt 00:00:03]} c6
{[%clk 00:14:46]} {[%emt 00:00:08]} 5. c4 {[%clk 00:15:16]} {[%emt 00:00:04]}
Qb6 {[%clk 00:13:28]} {[%emt 00:01:23]} 6. Qd2 {[%clk 00:14:57]} {[%emt
00:00:24]} Be6 {[%clk 00:13:25]} {[%emt 00:00:08]} 7. cxd5 {[%clk 00:14:55]}
{[%emt 00:00:08]} cxd5 {[%clk 00:13:28]} {[%emt 00:00:02]} 8. Nc3 {[%clk
00:14:56]} {[%emt 00:00:04]} Nc6 {[%clk 00:13:29]} {[%emt 00:00:04]} 9. Bb5
{[%clk 00:14:11]} {[%emt 00:00:49]} Bb4 {[%clk 00:13:15]} {[%emt 00:00:19]} 10.
Nge2 {[%clk 00:13:42]} {[%emt 00:00:34]} Rc8 {[%clk 00:12:40]} {[%emt
00:00:40]} 11. a3 {[%clk 00:13:20]} {[%emt 00:00:27]} Bd6 {[%clk 00:12:38]}
{[%emt 00:00:07]} 12. O-O {[%clk 00:12:56]} {[%emt 00:00:29]} O-O {[%clk
00:12:37]} {[%emt 00:00:05]} 13. Bxc6 {[%clk 00:11:53]} {[%emt 00:01:09]} Rxc6
{[%clk 00:12:22]} {[%emt 00:00:21]} 14. f4 {[%clk 00:11:49]} {[%emt 00:00:09]}
f5 {[%clk 00:11:51]} {[%emt 00:00:35]} 15. Rfc1 {[%clk 00:11:47]} {[%emt
00:00:06]} Rfc8 {[%clk 00:11:52]} {[%emt 00:00:05]} 16. Nd1 {[%clk 00:10:38]}
{[%emt 00:01:13]} h6 {[%clk 00:10:40]} {[%emt 00:01:18]} 17. Rxc6 {[%clk
00:10:30]} {[%emt 00:00:14]} Rxc6 {[%clk 00:10:20]} {[%emt 00:00:25]} 18. Rc1
{[%clk 00:10:33]} {[%emt 00:00:01]} g5 {[%clk 00:09:40]} {[%emt 00:00:44]} 19.
Rxc6 {[%clk 00:10:33]} {[%emt 00:00:06]} bxc6 {[%clk 00:09:42]} {[%emt
00:00:03]} 20. g3 {[%clk 00:10:12]} {[%emt 00:00:26]} f6 {[%clk 00:09:17]}
{[%emt 00:00:30]} 21. Kf2 {[%clk 00:10:11]} {[%emt 00:00:06]} Bc8 {[%clk
00:08:39]} {[%emt 00:00:43]} 22. Qc2 {[%clk 00:09:36]} {[%emt 00:00:40]} Kg7
{[%clk 00:08:32]} {[%emt 00:00:12]} 23. Ndc3 {[%clk 00:08:15]} {[%emt
00:01:27]} Qa6 {[%clk 00:08:27]} {[%emt 00:00:10]} 24. Na4 {[%clk 00:06:32]}
{[%emt 00:01:49]} h5 {[%clk 00:07:44]} {[%emt 00:00:48]} 25. h4 {[%clk
00:06:08]} {[%emt 00:00:29]} Kg6 {[%clk 00:07:35]} {[%emt 00:00:14]} 26. Nc1
{[%clk 00:04:56]} {[%emt 00:01:17]} Qb5 {[%clk 00:07:14]} {[%emt 00:00:25]} 27.
Qb3 {[%clk 00:04:41]} {[%emt 00:00:22]} Bd7 {[%clk 00:05:22]} {[%emt 00:01:56]}
28. Qxb5 {[%clk 00:04:40]} {[%emt 00:00:06]} cxb5 {[%clk 00:05:26]} {[%emt
00:00:01]} 29. Nc5 {[%clk 00:04:44]} Bc6 {[%clk 00:04:43]} {[%emt 00:00:49]} 30.
N1b3 {[%clk 00:04:38]} {[%emt 00:00:11]} gxh4 {[%clk 00:04:28]} {[%emt
00:00:19]} 31. gxh4 {[%clk 00:04:42]} {[%emt 00:00:01]} Bc7 {[%clk 00:04:32]}
{[%emt 00:00:01]} 32. Na6 {[%clk 00:04:16]} {[%emt 00:00:32]} Bb6 {[%clk
00:04:22]} {[%emt 00:00:15]} 33. Ke2 {[%clk 00:03:45]} {[%emt 00:00:36]} Kf7
{[%clk 00:04:23]} {[%emt 00:00:04]} 34. Kd3 {[%clk 00:03:45]} {[%emt 00:00:04]}
Ke7 {[%clk 00:04:26]} {[%emt 00:00:02]} 35. Kc3 {[%clk 00:03:48]} {[%emt
00:00:03]} Bb7 {[%clk 00:03:31]} {[%emt 00:01:00]} 36. Nac5 {[%clk 00:03:01]}
{[%emt 00:00:52]} Bc8 {[%clk 00:03:09]} {[%emt 00:00:26]} 37. Kb4 {[%clk
00:03:04]} {[%emt 00:00:03]} a6 {[%clk 00:03:14]} 38. Na5 {[%clk 00:02:35]}
{[%emt 00:00:34]} Kd6 {[%clk 00:03:06]} {[%emt 00:00:11]} 39. Nd3 {[%clk
00:01:48]} {[%emt 00:00:52]} Bd8 {[%clk 00:02:48]} {[%emt 00:00:22]} 40. Nc1
{[%clk 00:01:30]} {[%emt 00:00:24]} Be7 {[%clk 00:02:34]} {[%emt 00:00:18]} 41.
Ne2 {[%clk 00:01:33]} {[%emt 00:00:03]} Kc7+ {[%clk 00:02:27]} {[%emt
00:00:11]} 42. Kc3 {[%clk 00:01:37]} {[%emt 00:00:02]} b4+ {[%clk 00:01:26]}
{[%emt 00:01:07]} 43. axb4 {[%clk 00:01:40]} {[%emt 00:00:02]} Kb6 {[%clk
00:01:29]} {[%emt 00:00:01]} 44. Nb3 {[%clk 00:01:29]} {[%emt 00:00:16]} Kb5
{[%clk 00:01:27]} {[%emt 00:00:08]} 45. Nc5 {[%clk 00:01:33]} {[%emt 00:00:01]}
1-0

[Event "MČR v rapid šachu družstev 2019"]
[Site "Teplice, Czech Republic"]
[Date "2019.09.15"]
[Round "7.12"]
[White "Cech, Pavel"]
[Black "Postupa, Pavel"]
[Result "1-0"]
[TimeControl "15 min. + 5s"]
[WhiteElo "2394"]
[BlackElo "2203"]

1. d4 {[%clk 00:15:08]} {[%emt 00:00:02]} Nf6 {[%clk 00:15:09]} {[%emt
00:00:02]} 2. c4 {[%clk 00:15:11]} {[%emt 00:00:01]} g6 {[%clk 00:15:13]}
{[%emt 00:00:01]} 3. Nc3 {[%clk 00:15:13]} {[%emt 00:00:03]} d5 {[%clk
00:15:17]} 4. cxd5 {[%clk 00:15:16]} {[%emt 00:00:03]} Nxd5 {[%clk 00:15:21]}
{[%emt 00:00:01]} 5. e4 {[%clk 00:15:20]} {[%emt 00:00:01]} Nxc3 {[%clk
00:15:22]} {[%emt 00:00:04]} 6. bxc3 {[%clk 00:15:24]} {[%emt 00:00:01]} Bg7
{[%clk 00:15:26]} {[%emt 00:00:02]} 7. Nf3 {[%clk 00:15:27]} {[%emt 00:00:01]}
c5 {[%clk 00:15:27]} {[%emt 00:00:04]} 8. Rb1 {[%clk 00:15:30]} {[%emt
00:00:02]} O-O {[%clk 00:15:19]} {[%emt 00:00:13]} 9. Be2 {[%clk 00:15:33]}
{[%emt 00:00:02]} cxd4 {[%clk 00:15:22]} {[%emt 00:00:02]} 10. cxd4 {[%clk
00:15:36]} {[%emt 00:00:02]} Qa5+ {[%clk 00:15:24]} {[%emt 00:00:02]} 11. Bd2
{[%clk 00:15:38]} {[%emt 00:00:03]} Qxa2 {[%clk 00:14:39]} {[%emt 00:00:51]} 12.
O-O {[%clk 00:15:41]} {[%emt 00:00:02]} Bg4 {[%clk 00:09:01]} {[%emt 00:05:44]}
13. Rxb7 {[%clk 00:15:43]} {[%emt 00:00:03]} Nc6 {[%clk 00:08:40]} {[%emt
00:00:26]} 14. d5 {[%clk 00:14:34]} {[%emt 00:01:13]} Bxf3 {[%clk 00:08:08]}
{[%emt 00:00:37]} 15. Bxf3 {[%clk 00:14:36]} {[%emt 00:00:03]} Rfd8 {[%clk
00:07:31]} {[%emt 00:00:42]} 16. dxc6 {[%clk 00:11:54]} {[%emt 00:02:47]} Rxd2
{[%clk 00:06:36]} {[%emt 00:01:00]} 17. Qb1 {[%clk 00:11:56]} {[%emt 00:00:03]}
Qe6 {[%clk 00:03:36]} {[%emt 00:03:06]} 18. Rb8+ {[%clk 00:10:48]} {[%emt
00:01:12]} Rd8 {[%clk 00:03:28]} {[%emt 00:00:13]} 19. c7 {[%clk 00:10:38]}
{[%emt 00:00:15]} Rc8 {[%clk 00:02:13]} {[%emt 00:01:21]} 20. Qb7 {[%clk
00:10:11]} {[%emt 00:00:32]} 1-0